bitfinex-derivatives/quotes_BTCF0:USTF0_20210707
["timestamp","ask_amount","ask_price","bid_price","bid_amount"]
[1625622575886,1.41981759,34108.0,34107.0,2.24704288]
[1625622576128,2.42891362,34108.0,34107.0,2.24704288]
[1625622576851,1.41981759,34108.0,34107.0,3.45427457]
[1625622577089,0.74608666,34108.0,34107.0,3.45427457]
[1625622577630,1.08264229,34108.0,34107.0,3.45427457]
[1625622577750,0.74552218,34108.0,34107.0,4.83387677]
[1625622578235,1.08199333,34108.0,34107.0,3.45427457]
[1625622579312,1.00955629,34110.0,34107.0,3.45427457]
[1625622579552,1.00955629,34110.0,34109.0,0.24057544]
[1625622579733,0.16857488,34111.0,34109.0,3.86140271]
[1625622579853,0.16867528,34112.0,34110.0,3.62074902]
[1625622580093,0.1687074,34113.0,34111.0,3.62073376]
[1625622580334,0.1687074,34113.0,34112.0,2.2414123]
[1625622580454,0.1687074,34113.0,34112.0,2.5916723]
[1625622580575,0.1687074,34113.0,34112.0,3.97547581]
[1625622581477,0.1687074,34113.0,34112.0,4.45662669]
[1625622581840,0.1687074,34113.0,34112.0,3.07730777]
[1625622582680,1.01132107,34115.0,34114.0,4.5644]
[1625622582921,1.01132107,34115.0,34114.0,5.59873689]
[1625622583039,1.01132107,34115.0,34114.0,5.6032213]
[1625622584362,1.01132107,34115.0,34114.0,4.56888441]
[1625622584661,2.19126653,34115.0,34114.0,4.56888441]
[1625622585086,2.19126653,34115.0,34114.0,0.00448441]
[1625622585324,2.19126653,34115.0,34114.0,0.17239323]
[1625622585567,3.79214675,34115.0,34114.0,0.00448538]
[1625622585806,5.30697914,34115.0,34114.0,0.00448538]
[1625622586048,5.30697914,34115.0,34113.0,0.0044856]
[1625622586169,5.62765914,34115.0,34112.0,0.48115088]
[1625622586286,5.04813936,34114.0,34112.0,0.48115088]
[1625622586407,5.06149077,34114.0,34112.0,0.48115088]
[1625622586532,5.04765032,34113.0,34112.0,0.48115088]
[1625622586648,5.06099704,34113.0,34112.0,0.48115088]
[1625622586948,5.06099704,34113.0,34112.0,0.48563859]
[1625622587370,3.54673559,34113.0,34112.0,0.48563859]
[1625622587971,3.53338887,34113.0,34112.0,0.48563859]
[1625622588513,3.54673517,34113.0,34112.0,0.48563859]
[1625622589173,3.53338887,34113.0,34112.0,0.48563859]
[1625622593925,3.53338887,34113.0,34112.0,0.65816299]
[1625622595487,3.53338887,34113.0,34112.0,0.48563859]
[1625622596029,3.53338887,34113.0,34112.0,0.65820018]
[1625622600063,5.04959617,34113.0,34112.0,0.65820018]
[1625622600305,5.04959617,34113.0,34112.0,0.48563859]
[1625622602352,5.04959617,34113.0,34112.0,0.74471866]
[1625622602592,5.04959617,34113.0,34112.0,1.04914866]
[1625622602712,3.53338887,34113.0,34112.0,0.79006859]
[1625622603012,3.53338887,34113.0,34112.0,1.82632492]
[1625622606256,3.53338887,34113.0,34112.0,0.79006859]
[1625622606497,3.53338887,34113.0,34112.0,1.82642347]
[1625622608119,3.53338887,34113.0,34112.0,3.03563942]
[1625622608361,2.18736,34113.0,34112.0,3.03563942]
[1625622608600,2.18736,34113.0,34112.0,4.41754801]
[1625622608781,1.00956371,34113.0,34112.0,4.41754801]
[1625622608963,0.19140328,34114.0,34112.0,4.41754801]
[1625622609082,1.5206169,34119.0,34112.0,4.41754801]
[1625622609202,0.057,34122.0,34112.0,2.34473172]
[1625622609203,1.52135336,34122.0,34112.0,2.34473172]
[1625622609382,1.52135336,34122.0,34113.0,0.00448136]
[1625622609505,0.9825,34133.0,34113.0,0.00448136]
[1625622609506,0.16928227,34116.0,34115.0,1.55399498]
[1625622609744,0.2541417,34117.0,34115.0,1.79457042]
[1625622609866,1.52298901,34126.0,34115.0,1.79457042]
[1625622609986,1.52389124,34128.0,34116.0,1.55401035]
[1625622610284,0.24057544,34131.0,34127.0,4.7995]
[1625622610285,1.52457373,34130.0,34127.0,4.7995]
[1625622610407,1.76558582,34131.0,34127.0,5.14991]
[1625622610646,0.24057544,34131.0,34127.0,5.14991]
[1625622610764,0.24057544,34131.0,34128.0,0.00448016]
[1625622611725,1.52440032,34134.0,34130.0,0.85847173]
[1625622612927,1.7659341,34135.0,34130.0,0.85847173]
[1625622613171,1.52581955,34134.0,34130.0,0.85847173]
[1625622613711,1.76599568,34135.0,34134.0,4.1044]
[1625622613888,1.76599568,34135.0,34134.0,4.44121]
[1625622615094,1.76599568,34135.0,34134.0,0.33681]
[1625622615271,1.76599568,34135.0,34130.0,0.85847173]
[1625622615691,1.76599568,34135.0,34134.0,0.24057544]
[1625622618757,1.76599568,34135.0,34130.0,0.37732085]
[1625622618878,2.01573568,34135.0,34130.0,0.37732085]
[1625622619057,1.5230987,34133.0,34130.0,0.37732085]
[1625622619599,4.6101,34131.0,34130.0,0.37732085]
[1625622619719,4.85067544,34131.0,34130.0,0.37732085]
[1625622625004,6.20320418,34131.0,34130.0,0.37732085]
[1625622625366,4.85067544,34131.0,34130.0,0.37732085]
[1625622626326,6.20293039,34131.0,34130.0,0.37732085]
[1625622627290,4.85067544,34131.0,34130.0,0.37732085]
[1625622629149,6.03423792,34131.0,34130.0,0.37732085]
[1625622630415,7.38660002,34131.0,34130.0,0.37732085]
[1625622630894,6.03423792,34131.0,34130.0,0.37732085]
[1625622631013,1.42413792,34131.0,34130.0,0.37732085]
[1625622631556,1.42413792,34131.0,34130.0,3.96632085]
[1625622631799,1.42413792,34131.0,34130.0,3.72574541]
[1625622633727,0.24057544,34131.0,34130.0,3.72574541]
[1625622633908,0.24057544,34131.0,34130.0,3.96632085]
[1625622634087,1.42407911,34131.0,34130.0,3.96632085]
[1625622634687,1.42407911,34131.0,34130.0,0.37732085]
[1625622638173,1.43741984,34131.0,34130.0,0.3818071]
[1625622639313,2.45158927,34131.0,34130.0,0.3818071]
[1625622639433,2.74007927,34131.0,34130.0,0.3818071]
[1625622639552,3.41619996,34131.0,34130.0,0.3818071]
[1625622646231,3.12770996,34131.0,34130.0,0.6006471]
[1625622646595,1.70363085,34131.0,34130.0,0.6006471]
[1625622646892,0.01334073,34131.0,34130.0,0.6006471]
[1625622647015,0.67625566,34135.0,34130.0,1.28791796]
[1625622647192,0.67625566,34135.0,34131.0,0.68724331]
[1625622647312,0.67624642,34136.0,34131.0,0.68724331]
[1625622647491,0.67624642,34136.0,34132.0,0.00448284]
[1625622647733,0.67664786,34137.0,34132.0,0.69174997]
[1625622647972,0.67681889,34138.0,34136.0,0.48115088]
[1625622648152,0.67711421,34139.0,34136.0,0.48115088]
[1625622648272,0.67711421,34139.0,34137.0,0.00448251]
[1625622648455,0.67692512,34140.0,34137.0,0.34367251]
[1625622648814,0.67692512,34140.0,34139.0,4.4512]
[1625622649114,0.67710603,34141.0,34139.0,4.45568227]
[1625622649597,0.6770798,34142.0,34140.0,0.00448218]
[1625622649838,0.67715032,34141.0,34140.0,0.00448218]
[1625622649957,0.67715032,34141.0,34140.0,0.48563306]
[1625622650674,0.67727655,34142.0,34140.0,0.48563306]
[1625622650974,0.67727655,34142.0,34140.0,0.48115088]
[1625622654520,0.67876534,34145.0,34141.0,0.00448269]
[1625622654700,0.67903661,34146.0,34141.0,0.00448269]
[1625622655064,0.67918675,34147.0,34141.0,0.68645007]
[1625622655421,0.67908312,34148.0,34141.0,0.68645007]
[1625622655544,0.67908312,34148.0,34142.0,0.00448231]
[1625622655663,0.67908312,34148.0,34142.0,0.69068925]
[1625622655843,0.67908312,34148.0,34142.0,0.00448231]
[1625622655965,0.67908312,34148.0,34147.0,0.72172632]
[1625622656085,0.67908312,34148.0,34147.0,0.95732632]
[1625622656625,0.6790179,34149.0,34147.0,0.95732632]
[1625622656925,0.67974927,34152.0,34147.0,0.95732632]
[1625622657045,0.6800148,34154.0,34147.0,1.64335153]
[1625622657344,1.01993722,34155.0,34147.0,1.64335153]
[1625622657345,0.6801728,34155.0,34147.0,1.64335153]
[1625622657526,0.6801728,34155.0,34154.0,4.68452]
[1625622657825,1.70013807,34155.0,34154.0,4.68452]
[1625622658004,1.70013807,34155.0,34154.0,5.16567088]
[1625622661728,2.88943904,34155.0,34154.0,5.16567088]
[1625622661970,1.70013807,34155.0,34154.0,5.16567088]
[1625622663711,2.88929044,34155.0,34154.0,5.16567088]
[1625622663951,1.70013807,34155.0,34154.0,5.16567088]
[1625622664313,2.88906502,34155.0,34154.0,5.16567088]
[1625622665695,2.88906502,34155.0,34154.0,4.87375088]
[1625622666237,4.24709533,34155.0,34154.0,4.87375088]
[1625622666955,2.88906502,34155.0,34154.0,4.87375088]
[1625622667557,4.24762604,34155.0,34154.0,4.87375088]
[1625622667979,4.48820148,34155.0,34154.0,4.87375088]
[1625622668279,3.12964046,34155.0,34154.0,4.87375088]
[1625622668521,1.94071351,34155.0,34154.0,4.87375088]
[1625622669481,2.45039697,34155.0,34154.0,4.87375088]
[1625622669783,3.63923025,34155.0,34154.0,4.87375088]
[1625622671769,2.45039697,34155.0,34154.0,4.87375088]
[1625622672008,3.63818336,34155.0,34154.0,4.87375088]
[1625622672306,2.45039697,34155.0,34154.0,4.87375088]
[1625622673931,2.70054697,34155.0,34154.0,4.87375088]
[1625622674230,3.88815779,34155.0,34154.0,4.87375088]
[1625622676933,3.88815779,34155.0,34154.0,0.48115088]
[1625622677112,2.70054697,34155.0,34154.0,0.24057544]
[1625622677353,5.25753302,34155.0,34154.0,0.24057544]
[1625622677593,5.31453302,34155.0,34147.0,0.48115088]
[1625622677714,0.67789145,34148.0,34147.0,0.48115088]
[1625622677834,1.46219239,34148.0,34147.0,0.48115088]
[1625622677954,2.47881957,34148.0,34147.0,0.48115088]
[1625622678254,2.71939501,34148.0,34147.0,0.48115088]
[1625622678681,3.90501864,34148.0,34147.0,0.48115088]
[1625622679099,3.91834954,34148.0,34147.0,0.48115088]
[1625622679213,3.91834954,34148.0,34141.0,0.24057544]
[1625622679333,3.97534954,34148.0,34135.0,1.19932715]
[1625622679462,1.18560977,34144.0,34135.0,0.51399991]
[1625622679574,0.057,34143.0,34136.0,0.00448646]
[1625622679696,1.18560977,34144.0,34136.0,0.00448646]
[1625622679697,1.18456651,34141.0,34136.0,0.00448646]
[1625622679816,1.48690651,34141.0,34136.0,0.00448646]
[1625622680118,0.72172632,34137.0,34133.0,0.0044866]
[1625622680717,0.72172632,34137.0,34132.0,0.00448718]
[1625622680957,0.72172632,34137.0,34134.0,0.00448713]
[1625622681198,0.72172632,34137.0,34132.0,0.00448717]
[1625622682164,0.24057544,34133.0,34132.0,0.00448717]
[1625622682287,0.49804544,34133.0,34132.0,0.00448717]
[1625622682527,0.49804544,34133.0,34132.0,0.51872186]
[1625622682768,0.49804544,34133.0,34132.0,0.00448717]
[1625622682949,0.49804544,34133.0,34132.0,1.20449994]
[1625622683247,0.49804544,34133.0,34132.0,0.51877836]
[1625622683847,0.49804544,34133.0,34132.0,1.20459417]
[1625622684150,0.49804544,34133.0,34132.0,0.51877836]
[1625622685109,0.49804544,34133.0,34132.0,0.00448717]
[1625622687152,0.49804544,34133.0,34131.0,0.24057544]
[1625622689078,0.49804544,34133.0,34129.0,4.57853777]
[1625622689437,0.49804544,34133.0,34130.0,0.00449248]
[1625622689979,0.49804544,34133.0,34129.0,4.57853777]
[1625622690280,0.24057544,34130.0,34129.0,4.57853777]
[1625622690580,0.24057544,34130.0,34129.0,4.064]
[1625622692267,0.48115088,34130.0,34129.0,4.064]
[1625622693045,0.99025553,34130.0,34129.0,4.064]
[1625622694910,1.67245444,34130.0,34129.0,4.064]
[1625622695150,0.99025553,34130.0,34129.0,4.064]
[1625622695390,1.6724888,34130.0,34129.0,4.064]
[1625622695874,0.48115088,34130.0,34129.0,4.064]
[1625622699488,0.82256728,34130.0,34129.0,4.064]
[1625622700749,0.48115088,34130.0,34129.0,4.064]
[1625622703456,0.48115088,34130.0,34129.0,4.40745622]
[1625622704176,0.82348955,34130.0,34129.0,4.064]
[1625622704295,1.15124955,34130.0,34129.0,4.064]
[1625622704596,1.66477673,34130.0,34129.0,4.064]
[1625622705859,1.18362585,34130.0,34129.0,4.06849307]
[1625622706407,1.66477673,34130.0,34129.0,4.06849307]
[1625622708448,1.32243806,34130.0,34129.0,4.06849307]
[1625622708568,1.66501937,34130.0,34129.0,4.06849307]
[1625622709353,0.48115088,34130.0,34129.0,4.41203302]
[1625622709470,0.24057544,34130.0,34129.0,4.41203302]
[1625622709591,0.24057544,34130.0,34129.0,6.3011378]
[1625622710430,1.09784087,34134.0,34129.0,6.54171324]
[1625622710671,1.09784087,34134.0,34130.0,0.00448741]
[1625622710791,1.09784087,34134.0,34132.0,0.34347178]
[1625622711210,1.09784087,34134.0,34133.0,0.00448744]
[1625622711572,0.75490042,34134.0,34133.0,0.00448744]
[1625622711692,1.43955499,34134.0,34133.0,0.00448744]
[1625622711992,1.43955499,34134.0,34132.0,0.00448764]
[1625622712173,1.19781384,34133.0,34132.0,0.00448764]
[1625622712352,1.19781384,34133.0,34131.0,0.0044877]
[1625622712473,0.24057544,34132.0,34131.0,0.0044877]
[1625622712595,0.58281285,34132.0,34130.0,0.34349782]
[1625622712894,0.58281285,34132.0,34131.0,0.00448774]
[1625622714644,0.24057544,34132.0,34131.0,0.34793183]
[1625622715421,0.24057544,34132.0,34131.0,0.86311769]
[1625622716202,0.24057544,34132.0,34131.0,0.34793183]
[1625622716503,0.58277625,34132.0,34131.0,0.00448774]
[1625622718606,1.09620124,34132.0,34131.0,0.00448774]
[1625622719329,0.75400043,34132.0,34131.0,0.00448774]
[1625622721972,0.58255289,34132.0,34131.0,0.3481028]
[1625622722272,0.58255289,34132.0,34131.0,0.86361627]
[1625622722513,0.58255289,34132.0,34131.0,0.52000121]
[1625622722694,0.24057544,34132.0,34131.0,1.20738766]
[1625622723834,0.24057544,34132.0,34131.0,2.2384906]
[1625622723957,0.24057544,34132.0,34131.0,3.44156858]
[1625622724196,0.24057544,34132.0,34131.0,4.81645524]
[1625622724555,0.24057544,34132.0,34131.0,5.05703068]
[1625622724977,0.24057544,34132.0,34131.0,3.68214402]
[1625622725216,1.09764357,34137.0,34131.0,5.05708185]
[1625622725336,1.09764357,34137.0,34136.0,4.819]
[1625622725456,1.09764357,34137.0,34136.0,5.33460186]
[1625622725638,0.24057544,34137.0,34136.0,7.2703533]
[1625622725878,0.24057544,34137.0,34136.0,7.27483965]
[1625622726479,0.24057544,34137.0,34136.0,7.51541509]
[1625622726841,0.24057544,34137.0,34136.0,8.71866949]
[1625622727322,0.24057544,34137.0,34136.0,7.51541509]
[1625622727623,0.58437847,34137.0,34136.0,7.51541589]
[1625622728042,1.10045602,34137.0,34136.0,7.51541589]
[1625622728943,0.58437847,34137.0,34136.0,7.51541589]
[1625622729673,0.24057544,34137.0,34136.0,7.51541589]
[1625622729970,0.24057544,34137.0,34136.0,8.70893728]
[1625622730207,0.24057544,34137.0,34136.0,7.51541589]
[1625622730869,0.24057544,34137.0,34136.0,8.70906715]
[1625622731660,7.544e-05,34137.0,34136.0,8.70906715]
[1625622731778,0.68825622,34139.0,34136.0,8.70906715]
[1625622731779,0.34431455,34139.0,34136.0,10.07189144]
[1625622732073,0.34441305,34142.0,34138.0,4.76843845]
[1625622732310,1.20518749,34143.0,34137.0,0.00448613]
[1625622732311,0.34439904,34143.0,34141.0,3.40343516]
[1625622732550,0.34439904,34143.0,34142.0,0.72172632]
[1625622732851,0.61991457,34144.0,34142.0,4.13008351]
[1625622733094,1.03324277,34147.0,34143.0,3.919903]
[1625622733331,1.37759963,34150.0,34146.0,3.5713746]
[1625622733332,1.03320376,34150.0,34146.0,3.5713746]
[1625622733631,1.03315379,34152.0,34147.0,3.57036321]
[1625622733812,1.03242759,34153.0,34151.0,1.01916757]
[1625622733937,1.03242759,34153.0,34151.0,1.26844757]
[1625622734052,1.03242759,34153.0,34152.0,1.01969645]
[1625622734533,1.03242759,34153.0,34152.0,1.50084733]
[1625622735739,1.20447018,34155.0,34152.0,1.50084733]
[1625622735740,1.03206087,34154.0,34152.0,0.48115088]
[1625622737601,1.20362026,34156.0,34152.0,0.48115088]
[1625622737602,1.03119307,34155.0,34152.0,0.48115088]
[1625622740252,1.03074694,34153.0,34152.0,0.48115088]
[1625622740793,1.34012694,34153.0,34152.0,0.48115088]
[1625622741396,2.54239969,34153.0,34152.0,0.48115088]
[1625622741936,2.54239969,34153.0,34152.0,0.24057544]
[1625622742119,0.057,34152.0,34144.0,5.4015]
[1625622742416,1.03054529,34147.0,34144.0,5.4015]
[1625622742535,1.03054529,34147.0,34145.0,0.24057544]
[1625622742656,1.27111882,34146.0,34145.0,0.24057544]
[1625622742778,1.56613882,34146.0,34145.0,0.24057544]
[1625622743077,0.53559544,34146.0,34145.0,0.24057544]
[1625622744640,0.77617088,34146.0,34145.0,0.24057544]
[1625622750107,0.77617088,34146.0,34145.0,0.24506212]
[1625622750227,0.48115088,34146.0,34145.0,0.24506212]
[1625622751129,0.24057544,34146.0,34145.0,0.24506212]
[1625622751548,0.24057544,34146.0,34145.0,0.24057544]
[1625622751848,0.24057544,34146.0,34145.0,0.24506222]
[1625622752211,0.24057544,34146.0,34145.0,0.24057544]
[1625622752329,0.24057544,34146.0,34145.0,0.24506225]
[1625622752632,0.24057544,34146.0,34145.0,0.24057544]
[1625622754972,0.24057544,34146.0,34145.0,0.24506253]
[1625622755212,0.24057544,34146.0,34145.0,0.24057544]
[1625622755515,0.24057544,34146.0,34145.0,0.24506249]
[1625622761346,0.41249548,34146.0,34145.0,0.41492963]
[1625622764348,0.41249548,34146.0,34145.0,0.24506249]
[1625622764588,0.41249548,34146.0,34145.0,0.41507926]
[1625622764828,0.41249548,34146.0,34145.0,0.24506249]
[1625622764947,0.62692548,34146.0,34145.0,0.24506249]
[1625622765070,0.62692548,34146.0,34145.0,0.41058893]
[1625622765311,0.45500544,34146.0,34145.0,0.41507549]
[1625622768013,0.45500544,34146.0,34145.0,0.245062]
[1625622771616,0.46833227,34146.0,34145.0,0.245062]
[1625622772639,0.45500544,34146.0,34145.0,0.245062]
[1625622773180,0.46833234,34146.0,34145.0,0.245062]
[1625622773719,1.50050504,34146.0,34145.0,0.245062]
[1625622774200,1.48717814,34146.0,34145.0,0.245062]
[1625622774983,0.45500544,34146.0,34145.0,1.26744832]
[1625622775105,0.24057544,34146.0,34145.0,1.26744832]
[1625622776788,1.27322519,34146.0,34145.0,1.26744832]
[1625622776909,1.58711519,34146.0,34145.0,1.26744832]
[1625622777988,0.55446544,34146.0,34145.0,1.26744832]
[1625622778769,0.24057544,34146.0,34145.0,1.26744832]
[1625622779009,0.24057544,34146.0,34145.0,2.45966251]
[1625622779251,0.24057544,34146.0,34145.0,1.26744832]
[1625622779491,0.24057544,34146.0,34145.0,2.4597484]
[1625622779913,1.27428221,34146.0,34145.0,2.4597484]
[1625622780033,1.55684221,34146.0,34145.0,2.4597484]
[1625622783820,1.57016936,34146.0,34145.0,2.4597484]
[1625622783940,2.77718124,34146.0,34145.0,1.02687288]
[1625622784242,4.15663738,34146.0,34145.0,1.02687288]
[1625622784420,4.15663738,34146.0,34145.0,0.00448656]
[1625622784902,4.63778826,34146.0,34145.0,0.00448656]
[1625622785143,6.18991446,34146.0,34145.0,0.17549207]
[1625622785384,6.18991446,34146.0,34145.0,0.00448656]
[1625622785742,6.18991446,34146.0,34144.0,0.00448932]
[1625622785864,3.7169,34145.0,34144.0,0.00448932]
[1625622785982,3.7169,34145.0,34142.0,0.17101954]
[1625622786105,8.89171102,34145.0,34142.0,0.17101954]
[1625622786222,0.01332387,34144.0,34143.0,0.00448958]
[1625622786522,5.18820059,34144.0,34143.0,0.00448958]
[1625622786941,5.42877603,34144.0,34143.0,0.00448958]
[1625622787542,5.42877603,34144.0,34142.0,0.0044892]
[1625622787663,5.17496048,34143.0,34142.0,0.0044892]
[1625622787845,5.18828569,34143.0,34142.0,0.0044892]
[1625622789405,5.18828569,34143.0,34141.0,0.17374803]
[1625622789525,3.62167702,34142.0,34141.0,0.00448877]
[1625622789645,3.62167702,34142.0,34140.0,0.16921472]
[1625622790006,1.55245365,34143.0,34141.0,0.08899394]
[1625622790246,3.62226593,34142.0,34141.0,0.00448882]
[1625622790485,3.62226593,34142.0,34140.0,0.2537009]
[1625622790727,5.17461851,34142.0,34140.0,0.2537009]
[1625622790968,0.24057544,34141.0,34140.0,0.2537009]
[1625622791087,3.86278466,34141.0,34140.0,0.2537009]
[1625622791392,3.86278466,34141.0,34140.0,0.08448618]
[1625622791631,3.86278466,34141.0,34140.0,0.25375328]
[1625622792894,4.55259744,34141.0,34140.0,0.25375328]
[1625622793612,4.55259744,34141.0,34140.0,0.08448618]
[1625622793734,4.55259744,34141.0,34140.0,0.25350088]
[1625622794152,4.55259744,34141.0,34140.0,0.08448618]
[1625622794272,4.312022,34141.0,34140.0,0.08448618]
[1625622794993,5.03374832,34141.0,34140.0,0.08448618]
[1625622795837,5.03374832,34141.0,34139.0,0.25326215]
[1625622796077,4.3108227,34140.0,34139.0,0.25326215]
[1625622796381,4.3108227,34140.0,34139.0,0.16891721]
[1625622796500,4.3108227,34140.0,34139.0,0.17340598]
[1625622796618,4.3108227,34140.0,34139.0,0.00448877]
[1625622798059,2.93140771,34140.0,34139.0,1.68478403]
[1625622798238,2.93140771,34140.0,34139.0,0.67660687]
[1625622798478,2.93140771,34140.0,34139.0,1.68522658]
[1625622799082,2.93140771,34140.0,34139.0,1.92580202]
[1625622801244,0.6897937,34140.0,34139.0,1.92580202]
[1625622802867,0.9993437,34140.0,34139.0,1.92580202]
[1625622803048,0.9993437,34140.0,34139.0,1.68522658]
[1625622803169,2.37933547,34140.0,34139.0,0.67660687]
[1625622804732,0.9993437,34140.0,34139.0,1.68539773]
[1625622805875,0.9993437,34140.0,34139.0,1.68090896]
[1625622806054,0.9993437,34140.0,34139.0,1.68539723]
[1625622806416,0.9993437,34140.0,34139.0,0.67660637]
[1625622808340,0.9993437,34140.0,34139.0,1.68322101]
[1625622808461,0.6897937,34140.0,34139.0,2.01528101]
[1625622808581,0.6897937,34140.0,34139.0,1.00866637]
[1625622808700,0.6793937,34140.0,34139.0,1.00866637]
[1625622809002,1.03464743,34142.0,34139.0,4.52526757]
[1625622809125,0.17258492,34140.0,34139.0,4.52526757]
[1625622809365,0.25893652,34142.0,34140.0,0.00448447]
[1625622809540,0.25893652,34142.0,34139.0,6.03159423]
[1625622809723,0.25893374,34143.0,34141.0,3.51436305]
[1625622809841,0.08636871,34143.0,34142.0,3.51383785]
[1625622810083,0.2589205,34144.0,34142.0,3.5183221]
[1625622810201,0.2589205,34144.0,34143.0,4.5962]
[1625622810320,0.2589205,34144.0,34143.0,8.10939941]
[1625622810442,0.2589205,34144.0,34143.0,8.11388356]
[1625622810806,0.17255698,34144.0,34143.0,8.11388356]
[1625622811164,0.17255698,34144.0,34143.0,8.59503444]
[1625622814344,1.0344821,34146.0,34143.0,8.59503444]
[1625622814585,1.0344821,34146.0,34145.0,2.19068096]
[1625622814825,1.0344821,34146.0,34145.0,2.1951652]
[1625622818795,1.03409599,34147.0,34145.0,2.1951652]
[1625622819095,0.6190666,34146.0,34144.0,1.17572026]
[1625622819395,0.6190666,34146.0,34145.0,0.00448431]
[1625622821558,0.6190666,34146.0,34145.0,1.17997765]
[1625622821739,0.6190666,34146.0,34145.0,0.00448431]
[1625622821979,1.4474425,34148.0,34145.0,1.17970761]
[1625622822220,0.24057544,34148.0,34145.0,1.17970761]
[1625622822340,0.24057544,34148.0,34146.0,0.00448417]
[1625622822462,1.44689138,34148.0,34146.0,0.00448417]
[1625622822704,0.24057544,34148.0,34146.0,0.00448417]
[1625622822881,0.24057544,34148.0,34147.0,0.50374288]
[1625622823187,0.75764126,34148.0,34147.0,0.50374288]
[1625622823421,0.75764126,34148.0,34147.0,0.50822702]
[1625622828653,0.75764126,34148.0,34147.0,5.37682702]
[1625622834123,0.75764126,34148.0,34147.0,5.37682477]
[1625622837910,0.24057544,34148.0,34147.0,5.37682477]
[1625622838033,0.75740699,34148.0,34147.0,5.37682477]
[1625622840254,0.77074496,34148.0,34147.0,5.37682477]
[1625622840556,0.77074496,34148.0,34147.0,0.50822477]
[1625622840917,3.35465196,34148.0,34147.0,0.25697811]
[1625622841158,3.35465196,34148.0,34147.0,0.00448189]
[1625622841277,3.5952274,34148.0,34147.0,0.00448189]
[1625622841636,3.5952274,34148.0,34146.0,0.00448291]
[1625622841878,3.5952274,34148.0,34147.0,0.00448269]
[1625622841999,0.49448885,34148.0,34147.0,0.00448269]
[1625622842117,0.49448885,34148.0,34145.0,0.00448307]
[1625622842237,5.14637742,34148.0,34145.0,0.00448307]
[1625622842417,0.01334092,34147.0,34144.0,0.00448327]
[1625622842538,9.45100796,34146.0,34144.0,0.00448327]
[1625622842658,9.45100796,34146.0,34143.0,0.0044833]
[1625622842779,3.10143246,34145.0,34143.0,0.0044833]
[1625622842962,1.72301594,34144.0,34143.0,0.0044833]
[1625622843081,3.10132533,34144.0,34143.0,0.0044833]
[1625622843201,3.11466604,34144.0,34143.0,0.0044833]
[1625622843321,3.59581692,34144.0,34143.0,0.0044833]
[1625622843440,3.59581692,34144.0,34142.0,0.00448343]
[1625622843741,3.11465274,34143.0,34142.0,0.00448343]
[1625622843981,3.11465274,34143.0,34141.0,0.00448361]
[1625622844282,3.11475589,34142.0,34141.0,0.00448361]
[1625622844825,3.11475589,34142.0,34140.0,0.00448361]
[1625622845065,0.01334194,34141.0,34140.0,0.00448361]
[1625622845189,3.11472369,34141.0,34140.0,0.00448361]
[1625622845310,3.35529913,34141.0,34140.0,0.00448361]
[1625622845610,3.34195719,34141.0,34140.0,0.25778981]
[1625622845849,3.34195719,34141.0,34140.0,0.51103717]
[1625622845850,1.96362272,34141.0,34140.0,0.51103717]
[1625622846090,0.75755853,34141.0,34140.0,0.51103717]
[1625622846569,0.75755853,34141.0,34140.0,4.50823717]
[1625622846811,0.24057544,34141.0,34140.0,5.68862265]
[1625622847114,0.49926071,34141.0,34140.0,5.68862265]
[1625622847292,0.32686127,34141.0,34140.0,7.51785297]
[1625622847831,0.24057544,34141.0,34140.0,7.51785297]
[1625622848254,0.32686469,34141.0,34140.0,7.51785297]
[1625622849277,0.32686469,34141.0,34140.0,8.52846339]
[1625622849872,0.49929474,34141.0,34140.0,8.52846339]
[1625622851073,0.41300549,34141.0,34140.0,7.18038395]
[1625622851374,0.41300549,34141.0,34140.0,8.52715084]
[1625622851494,0.24057544,34141.0,34140.0,8.52715084]
[1625622851737,0.75764163,34141.0,34140.0,8.52715084]
[1625622852274,0.41304653,34141.0,34140.0,8.52715084]
[1625622852514,0.75765429,34141.0,34140.0,7.18038395]
[1625622856003,0.75765429,34141.0,34140.0,8.5310653]
[1625622857022,0.24057544,34141.0,34140.0,8.5310653]
[1625622857322,1.27521143,34141.0,34140.0,7.18038395]
[1625622861708,1.27521143,34141.0,34140.0,8.53138806]
[1625622862008,1.27521143,34141.0,34140.0,7.18038395]
[1625622862545,1.27521143,34141.0,34140.0,7.51165395]
[1625622862667,0.58564039,34141.0,34140.0,8.86157383]
[1625622862969,0.75827223,34141.0,34140.0,8.86157383]
[1625622863448,0.844673,34141.0,34140.0,8.86157383]
[1625622864170,0.75827223,34141.0,34140.0,8.86157383]
[1625622864828,1.10326005,34141.0,34140.0,8.86157383]
[1625622865317,0.75829822,34141.0,34140.0,8.86157383]
[1625622865496,0.75820704,34141.0,34140.0,8.86157383]
[1625622865615,1.01174704,34141.0,34140.0,8.86157383]
[1625622865732,2.04689794,34141.0,34140.0,8.53030383]
[1625622866094,7.30099794,34141.0,34140.0,8.53030383]
[1625622866215,7.30099794,34141.0,34140.0,7.18038395]
[1625622866696,8.50881609,34141.0,34140.0,7.18038395]
[1625622866875,8.50881609,34141.0,34140.0,6.69923307]
[1625622868800,9.1991361,34141.0,34140.0,7.37510305]
[1625622874816,9.1991361,34141.0,34140.0,3.37790305]
[1625622875415,3.9450361,34141.0,34140.0,3.37790305]
[1625622876320,3.9450361,34141.0,34140.0,7.57110305]
[1625622876803,2.73721795,34141.0,34140.0,8.92213812]
[1625622890404,2.03107795,34141.0,34140.0,8.92213812]
[1625622890581,1.20807153,34143.0,34140.0,8.92213812]
[1625622890822,0.25915251,34142.0,34140.0,10.44611519]
[1625622890940,0.25915251,34142.0,34141.0,0.10062762]
[1625622891061,0.60434535,34147.0,34141.0,5.85112627]
[1625622891241,0.08642757,34148.0,34146.0,4.04924352]
[1625622891360,0.08642757,34148.0,34147.0,0.0867]
[1625622891480,0.5178754,34149.0,34147.0,0.0867]
[1625622891481,0.08642191,34149.0,34147.0,4.09823777]
[1625622891660,0.08642191,34149.0,34148.0,0.72172632]
[1625622891782,0.25909064,34150.0,34148.0,4.72264289]
[1625622891903,0.25909064,34150.0,34149.0,4.2513]
[1625622892022,0.08641722,34154.0,34149.0,8.23721421]
[1625622892263,0.60420567,34156.0,34153.0,3.97350951]
[1625622892442,1.38003127,34162.0,34153.0,3.97350951]
[1625622892443,0.08633755,34157.0,34155.0,2.48075625]
[1625622892745,0.07233755,34157.0,34156.0,2.47807031]
[1625622892984,0.51732617,34159.0,34156.0,6.12497031]
[1625622893225,0.51732617,34159.0,34158.0,1.15307818]
[1625622893584,0.51732617,34159.0,34158.0,1.15755843]
[1625622893703,0.51732617,34159.0,34158.0,1.87928475]
[1625622894486,0.51693402,34160.0,34158.0,1.87928475]
[1625622894966,0.51693402,34160.0,34159.0,0.00448021]
[1625622895086,5.07173402,34160.0,34159.0,0.00448021]
[1625622895333,4.89936528,34160.0,34159.0,0.00448021]
[1625622895448,4.89936528,34160.0,34158.0,1.63422906]
[1625622895571,4.89936528,34160.0,34158.0,0.97422993]
[1625622895572,5.99291135,34160.0,34158.0,0.97422993]
[1625622895687,0.48115088,34159.0,34158.0,0.49307905]